fUST/lending_fUST_20250814
["ID","MTS","AMOUNT","RATE_DAILY","PERIOD"]
[379110523,1755147046445,-500.0,0.00018473,2]
[379110525,1755147046454,-500.0,0.00018473,2]
[379110527,1755147046466,-309.40248116,0.00018473,2]
[379110529,1755147046475,-500.0,0.00018473,2]
[379110531,1755147046484,-500.0,0.00018473,2]
[379110533,1755147046494,-500.0,0.00018473,2]
[379110535,1755147046503,-500.0,0.00018473,2]
[379110537,1755147046513,-411.64255301,0.00018473,2]
[379110539,1755147046522,-186.81340921,0.00018473,2]
[379110541,1755147046531,-500.0,0.00018473,2]
[379110543,1755147046541,-500.0,0.00018473,2]
[379110545,1755147046550,-500.0,0.00018473,2]
[379110547,1755147046559,-500.0,0.00018473,2]
[379110549,1755147046568,-158.54454297,0.00018473,2]
[379110551,1755147046577,-158.54062391,0.00018473,2]
[379110553,1755147046587,-160.14827096,0.00018473,2]
[379110555,1755147046596,-159.53209142,0.00018473,2]
[379110557,1755147046605,-158.54384429,0.00018473,2]
[379110559,1755147046614,-160.12590888,0.00018473,2]
[379110561,1755147046624,-500.0,0.00018473,2]
[379110563,1755147046634,-501.18744345,0.00018473,2]
[379110565,1755147046643,-500.0,0.00018473,2]
[379110567,1755147046652,-260.92635671,0.00018473,2]
[379110569,1755147046661,-500.0,0.00018473,2]
[379110571,1755147046670,-258.5463683,0.00018473,2]
[379110573,1755147046679,-160.54794852,0.00018473,2]
[379110575,1755147046689,-248.6262548,0.00018473,2]
[379110577,1755147046698,-160.14729062,0.00018473,2]
[379110579,1755147046708,-258.55477389,0.00018473,2]
[379110581,1755147046717,-158.12711862,0.00018473,2]
[379110583,1755147046726,-258.54604547,0.00018473,2]
[379110585,1755147046735,-500.0,0.00018473,2]
[379110587,1755147046745,-500.0,0.00018473,2]
[379110589,1755147046754,-340.69473822,0.00018473,2]
[379110591,1755147046762,-500.0,0.00018473,2]
[379110593,1755147046771,-160.14131253,0.00018473,2]
[379110594,1755147046787,-160.14549016,0.00018473,2]
[379110596,1755147046800,-185.35441177,0.00018473,2]
[379110598,1755147046809,-500.0,0.00018473,2]
[379110600,1755147046819,-341.10430609,0.00018473,2]
[379110602,1755147046827,-160.12985272,0.00018473,2]
[379110605,1755147046837,-258.5808282,0.00018473,2]
[379110607,1755147046846,-158.13063943,0.00018473,2]
[379110609,1755147046856,-157.12387104,0.00018473,2]
[379110610,1755147046865,-500.0,0.00018473,2]
[379110612,1755147046874,-500.0,0.00018473,2]
[379110614,1755147046884,-500.0,0.00018473,2]
[379110616,1755147046893,-500.64894482,0.00018473,2]
[379110618,1755147046902,-500.0,0.00018473,2]
[379110620,1755147046911,-500.0,0.00018473,2]
[379110622,1755147046920,-500.0,0.00018473,2]
[379110624,1755147046929,-500.0,0.00018473,2]
[379110626,1755147046938,-500.0,0.00018473,2]
[379110628,1755147046947,-500.0,0.00018473,2]
[379110630,1755147046957,-500.0,0.00018473,2]
[379110632,1755147046965,-500.0,0.00018473,2]
[379110634,1755147046975,-500.0,0.00018473,2]
[379110636,1755147046984,-632.57533355,0.00018473,2]
[379110638,1755147046994,-500.0,0.00018473,2]
[379110639,1755147047003,-500.0,0.00018473,2]
[379110640,1755147047012,-500.0,0.00018473,2]
[379110641,1755147047022,-500.0,0.00018473,2]
[379110642,1755147047032,-500.0,0.00018473,2]
[379110643,1755147047041,-500.0,0.00018473,2]
[379110644,1755147047050,-158.53045436,0.00018473,2]
[379110645,1755147047059,-500.0,0.00018473,2]
[379110646,1755147047068,-162.36118218,0.00018473,2]
[379110647,1755147047078,-500.0,0.00018473,2]
[379110648,1755147047087,-500.0,0.00018473,2]
[379110649,1755147047096,-160.55068044,0.00018473,2]
[379110650,1755147047106,-500.0,0.00018473,2]
[379110651,1755147047115,-500.0,0.00018473,2]
[379110652,1755147047127,-500.0,0.00018473,2]
[379110653,1755147047137,-500.0,0.00018473,2]
[379110654,1755147047146,-206.41950611,0.00018473,2]
[379110655,1755147047156,-158.54377374,0.00018473,2]
[379110656,1755147047165,-527.21987718,0.00018473,2]
[379110657,1755147047174,-500.0,0.00018473,2]
[379110658,1755147047183,-500.0,0.00018473,2]
[379110659,1755147047191,-181.16176592,0.00018473,2]
[379110660,1755147047200,-158.54364412,0.00018473,2]
[379110661,1755147047210,-500.0,0.00018473,2]
[379110662,1755147047220,-500.0,0.00018473,2]
[379110663,1755147047229,-500.0,0.00018473,2]
[379110664,1755147047238,-500.0,0.00018473,2]
[379110665,1755147047247,-500.0,0.00018473,2]
[379110666,1755147047256,-229.09553761,0.00018473,2]
[379110667,1755147047265,-500.0,0.00018473,2]
[379110668,1755147047274,-500.0,0.00018473,2]
[379110669,1755147047284,-500.0,0.00018473,2]
[379110670,1755147047293,-349.32952212,0.00018473,2]
[379110671,1755147047302,-525.39697072,0.00018473,2]
[379110672,1755147047312,-500.0,0.00018473,2]
[379110673,1755147047321,-500.0,0.00018473,2]
[379110674,1755147047330,-500.0,0.00018473,2]
[379110675,1755147047339,-500.0,0.00018473,2]
[379110676,1755147047348,-500.0,0.00018473,2]
[379110677,1755147047357,-500.0,0.00018473,2]
[379110678,1755147047366,-500.0,0.00018473,2]
[379110679,1755147047375,-500.0,0.00018473,2]
[379110680,1755147047387,-500.0,0.00018473,2]
[379110681,1755147047396,-500.0,0.00018473,2]
[379110682,1755147047405,-500.0,0.00018473,2]
[379110683,1755147047415,-151.0,0.00018473,2]
[379110684,1755147047428,-151.0,0.00018473,2]
[379110685,1755147047437,-151.0,0.00018473,2]
[379110686,1755147047446,-151.0,0.00018473,2]
[379110687,1755147047455,-151.0,0.00018473,2]
[379110688,1755147047466,-151.0,0.00018473,2]
[379110689,1755147047474,-151.0,0.00018473,2]
[379110690,1755147047483,-151.0,0.00018473,2]
[379110691,1755147047492,-257.678167,0.00018473,2]
[379110692,1755147047503,-257.678167,0.00018473,2]
[379110693,1755147047512,-151.0,0.00018473,2]
[379110694,1755147047521,-151.0,0.00018473,2]
[379110695,1755147047530,-251.441035,0.00018473,2]
[379110696,1755147047540,-251.441035,0.00018473,2]
[379110697,1755147047549,-151.0,0.00018473,2]
[379110698,1755147047558,-151.0,0.00018473,2]
[379110699,1755147047568,-151.0,0.00018473,2]
[379110700,1755147047577,-151.0,0.00018473,2]
[379110701,1755147047587,-151.0,0.00018473,2]
[379110702,1755147047595,-460.0,0.00018484,2]
[379110703,1755147047604,-737.33,0.00018484,2]
[379110704,1755147047612,-999.32,0.00018484,2]
[379110705,1755147047621,-2725.83,0.00018484,2]
[379110706,1755147047631,-688.29,0.00018484,2]
[379110707,1755147047640,-460.0,0.00018484,2]
[379110708,1755147047649,-497.88019112,0.00018484,2]
[379110709,1755147047660,-460.0,0.00018485,2]
[379110710,1755147047671,-460.0,0.00018485,2]
[379110711,1755147047680,-467.3209551,0.00018485,2]
[379110712,1755147047689,-460.0,0.00018485,2]
[379110713,1755147047698,-460.0,0.00018485,2]
[379110714,1755147047707,-881.73,0.00018485,2]
[379110715,1755147047716,-468.7223413,0.00018485,2]
[379110716,1755147047725,-466.16939636,0.00018485,2]
[379110717,1755147047735,-530.02,0.00018485,2]
[379110718,1755147047744,-460.0,0.00018485,2]
[379110719,1755147047753,-470.82157905,0.00018485,2]
[379110720,1755147047762,-5177.4,0.00018485,2]
[379110721,1755147047771,-460.0,0.00018485,2]
[379110722,1755147047780,-470.78104927,0.00018485,2]
[379110723,1755147047789,-468.16294658,0.00018485,2]
[379110724,1755147047798,-464.26456788,0.00018485,2]
[379110725,1755147047807,-460.0,0.00018485,2]
[379110726,1755147047816,-460.0,0.00018485,2]
[379110727,1755147047825,-465.62874468,0.00018485,2]
[379110728,1755147047834,-4740.4,0.00018485,2]
[379110729,1755147047843,-460.0,0.00018485,2]
[379110730,1755147047853,-460.0,0.00018485,2]
[379110731,1755147047862,-1030.72,0.00018485,2]
[379110732,1755147047871,-460.0,0.00018485,2]
[379110733,1755147047880,-460.0,0.00018485,2]
[379110734,1755147047889,-265.33450116,0.00018485,2]
[379110735,1755147047898,-471.81143523,0.00018485,2]
[379110736,1755147047908,-466.25002509,0.00018485,2]
[379110737,1755147047917,-460.0,0.00018485,2]
[379110738,1755147047926,-2309.85,0.00018485,2]
[379110739,1755147047936,-465.04196989,0.00018485,2]
[379110740,1755147047945,-460.0,0.00018485,2]
[379110741,1755147047955,-623.34,0.00018485,2]
[379110742,1755147047964,-460.0,0.00018485,2]
[379110743,1755147047973,-460.0,0.00018485,2]
[379110744,1755147047982,-1069.1,0.00018485,2]
[379110745,1755147047991,-460.0,0.00018485,2]
[379110746,1755147048000,-460.0,0.00018485,2]
[379110747,1755147048009,-469.87207375,0.00018485,2]
[379110748,1755147048019,-2438.36,0.00018485,2]
[379110749,1755147048028,-4467.82,0.00018485,2]
[379110750,1755147048037,-460.0,0.00018485,2]
[379110751,1755147048046,-464.00433436,0.00018485,2]
[379110752,1755147048056,-472.41,0.00018485,2]
[379110753,1755147048065,-460.0,0.00018485,2]
[379110754,1755147048076,-460.0,0.00018485,2]
[379110755,1755147048085,-550.96,0.00018485,2]
[379110756,1755147048095,-7626.84,0.00018485,2]
[379110757,1755147048104,-460.0,0.00018485,2]
[379110758,1755147048113,-460.0,0.00018485,2]
[379110759,1755147048123,-522.67,0.00018485,2]
[379110760,1755147048133,-460.0,0.00018485,2]
[379110761,1755147048143,-938.41,0.00018485,2]
[379110762,1755147048154,-460.0,0.00018485,2]
[379110763,1755147048163,-460.0,0.00018485,2]
[379110764,1755147048173,-460.0,0.00018485,2]
[379110765,1755147048183,-464.9728975,0.00018485,2]
[379110766,1755147048193,-460.0,0.00018485,2]
[379110767,1755147048203,-638.97,0.00018485,2]
[379110768,1755147048213,-234.10266091,0.00018485,2]
[379110769,1755147048222,-505.15,0.00018485,2]
[379110770,1755147048232,-1275.63,0.00018485,2]
[379110771,1755147048241,-151.0,0.00018485,2]
[379110772,1755147048252,-151.0,0.00018485,2]
[379110773,1755147048262,-466.08834391,0.00018485,2]
[379110774,1755147048273,-1225.78,0.00018485,2]
[379110775,1755147048283,-3103.64,0.00018485,2]
[379110776,1755147048293,-1571.49,0.00018485,2]
[379110777,1755147048303,-460.0,0.00018486,2]
[379110778,1755147048313,-460.0,0.00018486,2]
[379110779,1755147048331,-460.0,0.00018486,2]
[379110780,1755147048346,-460.0,0.00018486,2]
[379110781,1755147048357,-460.0,0.00018486,2]
[379110782,1755147048368,-1216.8,0.00018486,2]
[379110783,1755147048379,-2068.71,0.00018486,2]
[379110784,1755147048390,-1036.16,0.00018486,2]
[379110785,1755147048401,-460.0,0.00018486,2]
[379110786,1755147048412,-460.0,0.00018486,2]
[379110787,1755147048425,-460.0,0.00018486,2]
[379110788,1755147048436,-460.0,0.00018486,2]
[379110789,1755147048447,-682.98,0.00018486,2]
[379110790,1755147048458,-460.0,0.00018486,2]
[379110791,1755147048470,-460.0,0.00018486,2]
[379110792,1755147048480,-460.0,0.00018486,2]
[379110793,1755147048490,-1021.38,0.00018486,2]
[379110794,1755147048502,-460.0,0.00018486,2]
[379110795,1755147048513,-460.0,0.00018486,2]
[379110796,1755147048523,-460.0,0.00018486,2]
[379110797,1755147048534,-460.0,0.00018486,2]
[379110798,1755147048544,-460.0,0.00018486,2]
[379110799,1755147048555,-460.0,0.00018486,2]
[379110800,1755147048565,-460.0,0.00018486,2]
[379110801,1755147048576,-460.0,0.00018486,2]
[379110802,1755147048586,-460.0,0.00018486,2]
[379110803,1755147048596,-1609.22,0.00018486,2]
[379110804,1755147048607,-460.0,0.00018486,2]
[379110805,1755147048618,-1063.48,0.00018486,2]
[379110806,1755147048628,-608.75,0.00018486,2]
[379110807,1755147048639,-460.0,0.00018486,2]
[379110808,1755147048650,-460.59,0.00018486,2]
[379110809,1755147048660,-1280.6,0.00018486,2]
[379110810,1755147048671,-574.68,0.00018486,2]
[379110811,1755147048681,-589.78,0.00018486,2]
[379110812,1755147048692,-460.0,0.00018486,2]
[379110813,1755147048702,-460.0,0.00018486,2]
[379110814,1755147048713,-15126.92,0.00018486,2]
[379110815,1755147048723,-460.0,0.00018486,2]
[379110816,1755147048734,-578.13,0.00018486,2]
[379110817,1755147048744,-460.0,0.00018486,2]
[379110818,1755147048754,-460.0,0.00018486,2]
[379110819,1755147048765,-460.0,0.00018486,2]
[379110820,1755147048775,-932.56,0.00018486,2]
[379110821,1755147048785,-460.0,0.00018486,2]
[379110822,1755147048795,-460.0,0.00018486,2]
[379110823,1755147048805,-1602.78,0.00018486,2]
[379110824,1755147048816,-460.0,0.00018486,2]
[379110825,1755147048826,-460.0,0.00018486,2]
[379110826,1755147048837,-1642.59,0.00018486,2]
[379110827,1755147048847,-1013.43,0.00018486,2]
[379110828,1755147048857,-460.0,0.00018486,2]
[379110829,1755147048868,-460.0,0.00018486,2]
[379110830,1755147048878,-460.0,0.00018486,2]
[379110831,1755147048889,-460.0,0.00018486,2]
[379110832,1755147048900,-460.0,0.00018486,2]
[379110833,1755147048911,-935.05,0.00018486,2]
[379110834,1755147048921,-1450.89,0.00018486,2]
[379110835,1755147048932,-460.0,0.00018486,2]
[379110836,1755147048942,-12364.29,0.00018486,2]
[379110837,1755147048952,-460.0,0.00018486,2]
[379110838,1755147048962,-460.88,0.00018486,2]
[379110839,1755147048972,-460.0,0.00018486,2]
[379110840,1755147048982,-481.12,0.00018486,2]
[379110841,1755147048992,-460.0,0.00018486,2]
[379110842,1755147049001,-460.0,0.00018486,2]
[379110843,1755147049011,-1406.98,0.00018486,2]
[379110844,1755147049021,-500.0,0.00018493,2]
[379110845,1755147049030,-1206.26,0.00018493,2]
[379110846,1755147049040,-1441.62,0.00018493,2]
[379110847,1755147049050,-19123.68,0.00018493,2]
[379110848,1755147049060,-3694.25,0.00018493,2]
[379110849,1755147049069,-1421.56,0.00018493,2]
[379110850,1755147049079,-151.0,0.00018493,2]
[379110851,1755147049089,-151.0,0.00018493,2]
[379110852,1755147049100,-151.0,0.00018493,2]
[379110853,1755147049110,-1581.32,0.00018493,2]
[379110854,1755147049120,-300.27046445,0.00018494,2]
[379110855,1755147049130,-460.0,0.00018494,2]
[379110856,1755147049140,-460.0,0.00018494,2]
[379110857,1755147049151,-460.0,0.00018494,2]
[379110858,1755147049161,-460.0,0.00018494,2]
[379110859,1755147049172,-463.3673953,0.00018494,2]
[379110860,1755147049182,-593.67442996,0.00018494,2]
[379110861,1755147049192,-460.0,0.00018494,2]
[379110862,1755147049202,-151.0,0.00018494,2]
[379110863,1755147049212,-151.0,0.00018494,2]
[379110864,1755147049222,-1049.11,0.00018494,2]
[379110865,1755147049234,-151.0,0.00018494,2]
[379110866,1755147049244,-151.0,0.00018494,2]
[379110867,1755147049254,-460.0,0.00018494,2]
[379110868,1755147049264,-806.51,0.00018494,2]
[379110869,1755147049274,-460.0,0.00018494,2]
[379110870,1755147049284,-460.0,0.00018494,2]
[379110871,1755147049294,-460.0,0.00018494,2]
[379110872,1755147049304,-460.0,0.00018494,2]
[379110873,1755147049314,-1361.09,0.00018494,2]
[379110874,1755147049325,-1175.69,0.00018494,2]
[379110875,1755147049335,-2586.25,0.00018494,2]
[379110876,1755147049345,-1017.94,0.00018494,2]
[379110877,1755147049355,-460.0,0.00018494,2]
[379110878,1755147049365,-460.0,0.00018494,2]
[379110879,1755147049374,-3575.19,0.00018494,2]
[379110880,1755147049385,-460.0,0.00018494,2]
[379110881,1755147049395,-984.02,0.00018494,2]
[379110882,1755147049406,-460.0,0.00018494,2]
[379110883,1755147049416,-460.0,0.00018494,2]
[379110884,1755147049431,-3685.49,0.00018494,2]
[379110885,1755147049441,-460.0,0.00018494,2]
[379110886,1755147049451,-468.33587969,0.00018494,2]
[379110887,1755147049462,-326.0216984,0.00018495,2]
[379110888,1755147049472,-460.0,0.00018495,2]
[379110889,1755147049482,-772.26,0.00018495,2]
[379110890,1755147049492,-460.0,0.00018495,2]
[379110891,1755147049502,-460.0,0.00018495,2]
[379110892,1755147049514,-460.0,0.00018495,2]
[379110893,1755147049524,-460.0,0.00018495,2]
[379110894,1755147049534,-449.82542876,0.00018495,2]
[379110895,1755147049544,-463.53527396,0.00018495,2]
[379110896,1755147049554,-460.0,0.00018495,2]
[379110897,1755147049563,-200.0,0.00018495,2]
[379110898,1755147049573,-463.15122904,0.00018495,2]
[379110899,1755147049583,-464.06,0.00018495,2]
[379110900,1755147049593,-621.69,0.00018495,2]
[379110901,1755147049603,-460.0,0.00018495,2]
[379110902,1755147049613,-578.28,0.00018495,2]
[379110903,1755147049622,-546.71372739,0.00018495,2]
[379110904,1755147049632,-460.0,0.00018495,2]
[379110905,1755147049642,-460.0,0.00018495,2]
[379110906,1755147049652,-460.0,0.00018495,2]
[379110907,1755147049661,-460.0,0.00018495,2]
[379110908,1755147049671,-464.71865669,0.00018495,2]
[379110909,1755147049680,-460.0,0.00018495,2]
[379110910,1755147049690,-460.0,0.00018495,2]
[379110911,1755147049700,-460.0,0.00018495,2]
[379110912,1755147049709,-460.0,0.00018495,2]
[379110913,1755147049719,-460.0,0.00018495,2]
[379110914,1755147049729,-465.94004304,0.00018495,2]
[379110915,1755147049738,-460.0,0.00018495,2]
[379110916,1755147049748,-460.0,0.00018495,2]
[379110917,1755147049758,-460.0,0.00018495,2]
[379110918,1755147049767,-460.0,0.00018495,2]
[379110919,1755147049777,-1668.02,0.00018495,2]
[379110920,1755147049786,-657.25,0.00018495,2]
[379110921,1755147049796,-460.0,0.00018495,2]
[379110922,1755147049806,-460.0,0.00018495,2]
[379110923,1755147049815,-460.0,0.00018495,2]
[379110924,1755147049825,-460.0,0.00018495,2]
[379110925,1755147049834,-460.0,0.00018495,2]
[379110926,1755147049844,-597.19,0.00018495,2]
[379110927,1755147049854,-460.0,0.00018495,2]
[379110928,1755147049864,-1668.0,0.00018495,2]
[379110929,1755147049874,-460.0,0.00018495,2]
[379110930,1755147049885,-251.441035,0.00018495,2]
[379110931,1755147049894,-251.441035,0.00018495,2]
[379110932,1755147049905,-460.0,0.00018495,2]
[379110933,1755147049915,-460.0,0.00018495,2]
[379110934,1755147049925,-460.0,0.00018495,2]
[379110935,1755147049935,-460.0,0.00018495,2]
[379110936,1755147049945,-460.0,0.00018495,2]
[379110937,1755147049954,-460.0,0.00018495,2]
[379110938,1755147049963,-575.23,0.00018495,2]
[379110939,1755147049973,-460.0,0.00018495,2]
[379110940,1755147049983,-460.0,0.00018495,2]
[379110941,1755147049992,-460.0,0.00018495,2]
[379110942,1755147050002,-590.3,0.00018495,2]
[379110943,1755147050012,-460.0,0.00018495,2]
[379110944,1755147050022,-460.0,0.00018495,2]
[379110945,1755147050031,-460.0,0.00018495,2]
[379110946,1755147050041,-910.06,0.00018495,2]
[379110947,1755147050051,-460.0,0.00018495,2]
[379110948,1755147050061,-460.0,0.00018495,2]
[379110949,1755147050071,-655.13,0.00018495,2]
[379110950,1755147050081,-460.0,0.00018495,2]
[379110951,1755147050091,-460.0,0.00018495,2]
[379110952,1755147050101,-460.0,0.00018495,2]
[379110953,1755147050111,-460.0,0.00018495,2]
[379110954,1755147050121,-460.0,0.00018495,2]
[379110955,1755147050131,-3.35739999,0.00018495,2]
[379110956,1755147050676,-378.4,0.00018202,3]
[379110957,1755147050686,-460.0,0.00018221,2]
[379110958,1755147050696,-463.44905495,0.00018495,2]
[379110959,1755147050704,-460.0,0.00018495,2]
[379110960,1755147050714,-506.08,0.00018495,2]
[379110961,1755147050723,-460.0,0.00018495,2]
[379110962,1755147050733,-460.0,0.00018495,2]
[379110963,1755147050741,-606.33690679,0.00018495,2]
[379110964,1755147050750,-460.0,0.00018495,2]
[379110965,1755147050759,-535.98,0.00018495,2]
[379110966,1755147050768,-1186.68,0.00018495,2]
[379110967,1755147050777,-460.0,0.00018495,2]
[379110968,1755147050787,-460.0,0.00018495,2]
[379110969,1755147050796,-460.0,0.00018495,2]
[379110970,1755147050804,-460.0,0.00018495,2]
[379110971,1755147050814,-460.0,0.00018495,2]
[379110972,1755147050822,-860.44,0.00018495,2]
[379110973,1755147050832,-460.0,0.00018495,2]
[379110974,1755147050841,-806.47,0.00018495,2]
[379110975,1755147050850,-460.0,0.00018495,2]
[379110976,1755147050859,-1938.57,0.00018495,2]
[379110977,1755147050868,-597.91810537,0.00018495,2]
[379110978,1755147050879,-1374.14,0.00018495,2]
[379110979,1755147050888,-1209.93,0.00018495,2]
[379110980,1755147050897,-460.0,0.00018495,2]
[379110981,1755147050906,-463.58735649,0.00018495,2]
[379110982,1755147050915,-460.0,0.00018495,2]
[379110983,1755147050924,-214.31492978,0.00018495,2]
[379110984,1755147050933,-747.93,0.00018495,2]
[379110985,1755147050943,-460.0,0.00018495,2]
[379110986,1755147050952,-460.0,0.00018495,2]
[379110987,1755147050961,-460.0,0.00018495,2]
[379110988,1755147050971,-151.0,0.00018495,2]
[379110989,1755147050980,-460.88110312,0.00018495,2]
[379110990,1755147050989,-460.0,0.00018495,2]
[379110991,1755147050998,-460.0,0.00018495,2]
[379110992,1755147051008,-460.0,0.00018495,2]
[379110993,1755147051019,-1561.0,0.00018495,2]
[379110994,1755147051029,-469.68,0.00018495,2]
[379110995,1755147051038,-1058.18,0.00018495,2]
[379110996,1755147051048,-460.0,0.00018495,2]
[379110997,1755147051058,-560.89,0.00018495,2]
[379110998,1755147051067,-460.0,0.00018495,2]
[379110999,1755147051077,-460.0,0.00018495,2]
[379111000,1755147051086,-460.0,0.00018495,2]
[379111001,1755147051095,-460.0,0.00018495,2]
[379111002,1755147051105,-151.0,0.00018495,2]
[379111003,1755147051114,-151.0,0.00018495,2]
[379111004,1755147051124,-460.0,0.00018495,2]
[379111005,1755147051134,-151.0,0.00018495,2]
[379111006,1755147051143,-151.0,0.00018495,2]
[379111007,1755147051153,-460.0,0.00018495,2]
[379111008,1755147051162,-460.0,0.00018495,2]
[379111009,1755147051171,-460.0,0.00018495,2]
[379111010,1755147051180,-460.0,0.00018495,2]
[379111011,1755147051189,-460.0,0.00018495,2]
[379111012,1755147051199,-1173.76,0.00018495,2]
[379111013,1755147051208,-460.0,0.00018495,2]
[379111014,1755147051217,-151.0,0.00018496,2]
[379111015,1755147051228,-151.0,0.00018496,2]
[379111016,1755147051238,-151.0,0.00018496,2]
[379111017,1755147051247,-151.0,0.00018496,2]
[379111018,1755147051256,-299.910611,0.00018496,2]
[379111019,1755147051265,-151.0,0.00018497,2]
[379111020,1755147051274,-460.0,0.00018497,2]
[379111021,1755147051283,-460.0,0.00018497,2]
[379111022,1755147051293,-460.0,0.00018497,2]
[379111023,1755147051302,-460.0,0.00018497,2]
[379111024,1755147051311,-460.0,0.00018497,2]
[379111025,1755147051320,-460.0,0.00018497,2]
[379111026,1755147051329,-151.0,0.00018497,2]
[379111027,1755147051338,-194.954424,0.00018497,2]
[379111029,1755147051348,-460.0,0.00018497,2]
[379111031,1755147051357,-151.0,0.00018497,2]
[379111033,1755147051366,-791.4,0.00018497,2]
[379111034,1755147051375,-460.0,0.00018497,2]
[379111036,1755147051385,-251.441035,0.00018497,2]
[379111038,1755147051395,-251.441035,0.00018497,2]
[379111039,1755147051404,-768.01,0.00018497,2]
[379111040,1755147051414,-463.35558276,0.00018497,2]
[379111041,1755147051426,-151.0,0.00018497,2]
[379111042,1755147051435,-465.52,0.00018497,2]
[379111043,1755147051445,-807.48,0.00018497,2]
[379111044,1755147051454,-460.0,0.00018497,2]
[379111045,1755147051463,-499.21,0.00018497,2]
[379111046,1755147051474,-460.0,0.00018497,2]
[379111047,1755147051484,-460.0,0.00018497,2]
[379111048,1755147051493,-460.0,0.00018497,2]
[379111049,1755147051503,-460.0,0.00018497,2]
[379111051,1755147051512,-460.0,0.00018497,2]
[379111053,1755147051521,-460.0,0.00018497,2]
[379111054,1755147051530,-1745.11,0.00018497,2]
[379111055,1755147051539,-578.01018736,0.00018497,2]
[379111056,1755147051560,-94.22981264,0.00018497,2]
[379111057,1755147051569,-460.0,0.00018497,2]
[379111058,1755147051579,-460.0,0.00018497,2]
[379111059,1755147051588,-460.0,0.00018497,2]
[379111060,1755147051597,-460.0,0.00018497,2]
[379111061,1755147051606,-460.0,0.00018497,2]
[379111062,1755147051615,-502.20260088,0.00018497,2]
[379111063,1755147051624,-460.0,0.00018497,2]
[379111064,1755147051633,-460.0,0.00018497,2]
[379111065,1755147051642,-460.0,0.00018497,2]
[379111066,1755147051652,-460.0,0.00018497,2]
[379111067,1755147051661,-460.0,0.00018497,2]
[379111068,1755147051670,-460.0,0.00018497,2]
[379111069,1755147051679,-460.0,0.00018497,2]
[379111070,1755147051689,-566.87,0.00018497,2]
[379111071,1755147051697,-151.0,0.00018498,2]
[379111072,1755147051706,-151.0,0.00018498,2]
[379111073,1755147051715,-151.0,0.00018498,2]
[379111074,1755147051725,-151.0,0.00018498,2]
[379111075,1755147051734,-151.0,0.00018498,2]
[379111076,1755147051743,-387.802145,0.00018498,2]
[379111077,1755147051752,-387.802145,0.00018498,2]
[379111078,1755147051761,-466.660348,0.00018498,2]
[379111079,1755147051771,-466.660348,0.00018498,2]
[379111080,1755147051780,-460.0,0.00018498,2]
[379111081,1755147051790,-473.06018368,0.00018498,2]
[379111082,1755147051799,-460.0,0.00018498,2]
[379111083,1755147051808,-460.0,0.00018498,2]
[379111084,1755147051818,-151.0,0.00018498,2]
[379111085,1755147051827,-460.0,0.00018498,2]
[379111086,1755147051837,-460.0,0.00018498,2]